Cogmind - Beta 11 X8 @@@ ROGUE MODE // 2021.10.28 @ 03:42:52 Player: cptwinky Result: Destroyed by A-27 Freighter with PD Laser Performance ------------- Evolutions (5) 2500 Regions Visited (7) 1400 Robots Destroyed (150) 750 Value Destroyed (5240) 5240 Prototype IDs (10) 200 Alien Tech Used (0) 0 Bonus (5028) 5028 TOTAL SCORE: 15118 Bonus ------- Scavenger 5000 High Alert Combat Kills 28 Cogmind --------- Core Integrity 0/1000 Matter 239/300 Energy 96/100 System Corruption 5% Temperature Cool (6) Movement Core (150) Ox2 Location -5/Factory Parts ------- > --- POWER (2) -------- (None) > --- PROPULSION (6) --- (None) > --- UTILITY (6) ------ Improved Targeting Computer Improved Target Analyzer > --- WEAPON (3) ------- Advanced Assault Cannon > --- INVENTORY (5) ---- Reinforced Fission Core Improved Weapon Cycler Peak State ------------ > --- POWER ------------ Light Deuterium Engine Micro Nuclear Core > --- PROPULSION ------- Light Treads Light Treads Improved Medium Treads Compact Wheel Armored Huge Wheel > --- UTILITY ---------- Advanced Cooling System Huge Storage Unit Enhanced Optical Array Improved Targeting Computer Advanced Shield Generator Hacking Suite > --- WEAPON ----------- Advanced Beam Cannon Advanced Beam Cannon Advanced Beam Cannon > --- INVENTORY -------- Light Angular Momentum Engine Light Neutrino Core Reinforced Fission Core Micro Fission Core Light Treads Improved Signal Interpreter Improved Target Analyzer Kinecellerator Improved Weapon Cycler Hardened Heavy Armor Plating Improved Heavy Armor Plating Component Analysis Suite Proton Cannon Advanced Beam Cannon Advanced Assault Cannon Advanced Assault Cannon Advanced Assault Cannon Advanced Assault Cannon Heavy Mass Driver Scatter Rocket Array Datajack Katana [Rating: 66] Favorites ----------- Power Cooled Ion Engine Engine Cooled Ion Engine Power Core Micro Nuclear Core Propulsion Light Treads Treads Light Treads Wheel Armored Huge Wheel Utility Light Armor Plating Device Cooling System Storage Huge Storage Unit Processor Enhanced Optical Array Hackware Hacking Suite Protection Light Armor Plating Weapon Advanced Beam Cannon Energy Gun Small Laser Energy Cannon Advanced Beam Cannon Ballistic Gun Improved Assault Rifle Ballistic Cannon Advanced Assault Cannon Launcher Scatter Rocket Array Special Melee Weapon Datajack Build | -11 -10 -9 -9 -8 -7 -6 -5 ------- Run | Scr Mat Mat Sto Mat Fac Fac Fac Slots Evolved 10 | . . 2 . 2 2 2 2 Power 1 | . . . . . . . 1 Propulsion 4 | . . . . 2 1 1 . Utility 4 | . . 1 . . 1 1 1 Weapon 1 | . . 1 . . . . . Parts Attached 135 | 6 9 12 36 7 28 16 21 Power 7 | 1 . 1 2 . 1 . 2 Engine 6 | 1 . 1 2 . 1 . 1 Core 1 | . . . . . . . 1 Reactor . | . . . . . . . . Propulsion 35 | 2 2 2 8 4 10 4 3 Treads 32 | 2 2 2 8 4 9 3 2 Leg . | . . . . . . . . Wheel 3 | . . . . . 1 1 1 Hover . | . . . . . . . . Flight . | . . . . . . . . Utility 35 | 1 3 3 5 2 10 5 6 Device 9 | . 1 2 1 . 2 1 2 Storage 6 | 1 1 . 2 . 2 . . Processor 4 | . . . . . . 2 2 Hackware 2 | . . . . . 1 1 . Protection 14 | . 1 1 2 2 5 1 2 Artifact . | . . . . . . . . Weapon 58 | 2 4 6 21 1 7 7 10 Energy Gun 7 | 2 4 1 . . . . . Energy Cannon 17 | . . . 4 1 5 4 3 Ballistic Gun 18 | . . 5 13 . . . . Ballistic Cannon 6 | . . . . . . 1 5 Launcher 5 | . . . 1 . 2 1 1 Special Weapon . | . . . . . . . . Impact Weapon . | . . . . . . . . Slashing Weapon . | . . . . . . . . Piercing Weapon . | . . . . . . . . Special Melee Weapon 5 | . . . 3 . . 1 1 Unidentified Prototypes 4 | . . 1 3 . . . . Parts Lost 41 | . 1 1 2 . 8 7 22 Power 3 | . . . . . 1 . 2 Propulsion 13 | . . . . . 2 4 7 Utility 13 | . . 1 2 . 3 2 5 Weapon 12 | . 1 . . . 2 1 8 Highest Loss Streak 9 | . 1 1 1 . 5 7 9 Average Slot Usage (%) 96 | . 94 98 98 100 96 92 86 Engine 9 | . 14 11 11 9 6 6 4 Treads 26 | . 27 21 22 36 33 28 19 Wheel 1 | . . . . . 1 4 6 Device 8 | . 4 10 10 9 7 5 5 Storage 9 | . 14 11 11 9 7 6 4 Processor 1 | . . . . . . 5 11 Hackware 1 | . . . . . . 6 4 Protection 9 | . 6 10 10 9 12 5 3 Energy Gun 3 | . 27 22 . . . . . Energy Cannon 11 | . . . 4 27 22 19 14 Ballistic Gun 11 | . . 10 27 . . . . Naked Turns . | . . . . . . . . Heaviest Build 117 | 11 18 26 65 66 111 109 117 Greatest Support 120 | 40 40 40 40 80 100 120 90 Greatest Overweight (x) 4 | . . . 1 . 3 3 4 Average Overweight (x) 1 | . . . . . 1 2 3 Largest Inventory Capacity 25 | 8 10 10 20 20 25 25 25 Average Capacity 17 | 7 8 10 13 20 24 25 23 Most Carried 25 | 6 10 10 20 20 25 22 25 Average Carried 15 | 3 8 9 12 19 22 17 18 Final Capacity 25 | 8 10 10 20 20 25 25 5 Final Carried 21 | 6 10 10 20 20 21 18 2 Class Distribution -------------------- 41% | Tank 29% | Scavenger-Tank 12% | Mutant 6% | Scavenger-Mutant 6% | Gunner 3% | Scavenger-Gunner Dominant Class ---------------- Mutant | -10/Materials Scavenger-Tank | -9/Materials Scavenger-Tank | -9/Storage Tank | -8/Materials Tank | -7/Factory Tank | -6/Factory Gunner | -5/Factory Resources | -11 -10 -9 -9 -8 -7 -6 -5 ----------- Run | Scr Mat Mat Sto Mat Fac Fac Fac Matter Collected 2602 | 215 135 142 1004 43 450 146 467 Remotely . | . . . . . . . . Salvage Created 5721 | . 369 532 1417 482 1463 265 1193 Parts 295 | . 20 35 92 23 73 10 42 Haulers Intercepted 11 | . 1 1 6 1 2 . . Recyclers Shooed 5 | . . . . 1 . 1 3 Parts Field Recycled . | . . . . . . . . Retrieved Matter . | . . . . . . . . Parts Self-Destructed . | . . . . . . . . Prevented . | . . . . . . . . Kills | -11 -10 -9 -9 -8 -7 -6 -5 ------- Run | Scr Mat Mat Sto Mat Fac Fac Fac Combat Hostiles Destroyed 116 | . 10 14 25 8 29 7 23 Melee 1 | . . . . . 1 . . Guns 49 | . 10 14 25 . . . . Cannons 35 | . . . . 7 14 2 12 AOE 22 | . . . . . 9 4 9 Classes Destroyed 16 | . 3 2 2 1 4 1 3 Worker 6 | . . 1 1 . 4 . . Builder 5 | . . . . . 3 1 1 Hauler 11 | . 1 1 6 1 2 . . Recycler 4 | . . . . 1 1 . 2 Operator 2 | . . . 1 . . 1 . Watcher 6 | . . . 2 . 2 . 2 Swarmer 22 | . 3 4 6 2 3 . 4 Saboteur 1 | . . . . . . . 1 Grunt 51 | . 7 8 8 5 12 6 5 Duelist 1 | . . . . . . 1 . Protector 1 | . . . . . . . 1 Sentry 18 | . . 2 11 1 4 . . Specialist 3 | . . . . . . . 3 Hunter 5 | . . . . . 1 . 4 Programmer 11 | . . . . . 8 . 3 Heavy 3 | . . . . . 1 . 2 Best Kill Streak 12 | . 5 7 5 3 10 6 12 Combat Bots Only 9 | . 5 7 5 3 6 6 9 Max Kills in Single Turn 7 | . 1 2 2 2 7 2 6 Gunslinging . | . . . . . . . . Exploded 5 | . . . . . 3 2 5 Melee 1 | . . . . . 1 . . Uniques/NPCs Destroyed . | . . . . . . . . Combat | -11 -10 -9 -9 -8 -7 -6 -5 -------- Run | Scr Mat Mat Sto Mat Fac Fac Fac Damage Taken 8939 | . 339 381 939 314 2204 779 3983 Core 1451 | . 48 51 98 25 193 36 1000 Absorbed by Shields 153 | . . . . . . . 153 Core Remaining (%) 84 | 100 80 . 62 95 72 95 . Volleys Fired 302 | . 30 31 80 22 66 13 60 Largest 3 | . 2 3 3 3 3 3 3 Hottest 204 | . 90 120 69 204 204 204 204 Shots Fired 776 | . 60 93 222 51 179 35 136 Gun 373 | . 60 93 220 . . . . Cannon 394 | . . . 2 51 175 33 133 Launcher 9 | . . . . . 4 2 3 Special . | . . . . . . . . Kinetic 246 | . . 10 220 . . . 16 Thermal 520 | . 59 83 2 51 175 33 117 Explosive 9 | . . . . . 4 2 3 Electromagnetic 1 | . 1 . . . . . . Robot Hit Streak 31 | . 19 20 31 9 16 9 22 Robot Miss Streak 8 | . 4 3 4 2 8 2 4 Penetration Max . | . . . . . . . . Secondary Targets 4 | . 1 . 3 . . . . Max Gunslinging Chain 1 | . 1 . 1 . . . . Shots Hit Robots 529 | . 42 65 147 31 121 25 98 Core Hits 317 | . 21 25 49 14 84 29 95 Critical Kills 4 | . . . . . 2 . 2 Critical Parts Destroyed 1 | . . . 1 . . . . Critical Strikes 5 | . . . 1 . 2 . 2 Meltdown 4 | . . . . . 2 . 2 Destroy 1 | . . . 1 . . . . Melee Attacks 3 | . . . . . . . 3 Impact . | . . . . . . . . Slashing . | . . . . . . . . Piercing . | . . . . . . . . Sneak Attacks 2 | . . . . . . . 2 Combat Hostiles . | . . . . . . . . Follow-up Attacks . | . . . . . . . . Damage Inflicted 13698 | . 524 812 2440 704 3815 1320 4083 Guns 3752 | . 524 812 2416 . . . . Cannons 5970 | . . . . 664 2590 553 2163 Explosions 3862 | . . . . . 1180 767 1915 Melee . | . . . . . . . . Ramming 114 | . . . 24 40 45 . 5 Kinetic 2905 | . . 121 2416 . . . 368 Thermal 6872 | . 508 691 . 664 2590 624 1795 Explosive 3725 | . . . . . 1180 696 1849 Electromagnetic 82 | . 16 . . . . . 66 Impact . | . . . . . . . . Slashing . | . . . . . . . . Piercing . | . . . . . . . . Highest Corruption 4 | . . . . . 3 3 4 Average Corruption 1 | . . . . . 2 2 1 Corruption Purged 3 | . . . . . 3 . . Effects 13 | . . . . . 9 1 3 Message Errors 5 | . . . . . 4 . 1 Heat Flow Errors 3 | . . . . . 2 . 1 Energy Discharges 2 | . . . . . 2 . . Data Loss (minor) 2 | . . . . . 1 1 . Weapon Failures 1 | . . . . . . . 1 Overload Shots . | . . . . . . . . Overflow Damage 143 | . . . . 2 57 84 . Projectiles 47 | . . . . 2 45 . . Explosions 96 | . . . . . 12 84 . Melee . | . . . . . . . . Knockbacks 4 | . . . 1 . 1 . 2 Impact 2 | . . . 1 . 1 . . Kinetic 2 | . . . . . . . 2 Secondary . | . . . . . . . . Self-Inflicted Damage 443 | . . . . . 102 231 110 Shots 14 | . . . . . 4 5 5 Rammed 15 | . . . 4 4 6 . 1 Targets Rammed 16 | . . . 4 4 7 . 1 Kicked . | . . . . . . . . Crushed 1 | . . . . . 1 . . Highest Temperature 418 | . 270 203 35 243 368 377 418 Average Temperature 106 | . 72 85 8 130 123 126 118 Received Heat Transfer 1695 | . 126 120 288 135 444 234 348 Effects 10 | . . . . 1 5 . 4 Energy Bleed 5 | . . . . 1 1 . 3 Interference 3 | . . . . . 3 . . Matter Decay 1 | . . . . . 1 . . Short Circuit 1 | . . . . . . . 1 Siege Activations . | . . . . . . . . Robots Corrupted . | . . . . . . . . Combat Hostiles . | . . . . . . . . Parts Fried . | . . . . . . . . Impact Corruptions . | . . . . . . . . Robots Melted 9 | . . . . 1 5 1 2 Combat Hostiles 9 | . . . . 1 5 1 2 Parts Melted 39 | . 3 1 . 3 18 1 13 Heat Transferred 12401 | . 1170 1450 . 1184 4403 1049 3145 Parts Sabotaged . | . . . . . . . . Parts Stolen . | . . . . . . . . Parts Stripped . | . . . . . . . . Power Chain Reactions . | . . . . . . . . Missiles Intercepted . | . . . . . . . . Alert | -11 -10 -9 -9 -8 -7 -6 -5 ------- Run | Scr Mat Mat Sto Mat Fac Fac Fac Peak Influence 462 | . 244 302 462 243 431 389 339 Initial 158 | . . 37 112 5 45 158 112 Average 127 | . 130 153 100 79 117 271 153 Maximum Alert Level 2 | . 1 1 2 1 2 1 1 Low Security (%) 73 | 100 74 75 80 94 72 30 68 Level 1 24 | . 25 24 18 5 24 69 31 Level 2 1 | . . . 1 . 3 . . Level 3 . | . . . . . . . . Level 4 . | . . . . . . . . Level 5 . | . . . . . . . . High Security . | . . . . . . . . Max Security . | . . . . . . . . Squads Dispatched 24 | . 3 2 3 1 6 4 5 Investigation 9 | . 2 2 2 1 1 . 1 Extermination 4 | . . . . . 3 . 1 Reinforcement 9 | . 1 . 1 . 2 2 3 Assault . | . . . . . . . . Garrison 2 | . . . . . . 2 . Intercept . | . . . . . . . . Construction Impeded 2 | . . . . . 1 . 1 Haulers Reinforced 1 | . . . . . . 1 . Active Scanning Responses . | . . . . . . . . Cargo Convoy Interrupts 1 | . . . . . . . 1 Stealth | -11 -10 -9 -9 -8 -7 -6 -5 --------- Run | Scr Mat Mat Sto Mat Fac Fac Fac Distress Signals 7 | . . . . 1 3 . 3 Communications Jammed . | . . . . . . . . Distress Signals . | . . . . . . . . Times Spotted 161 | . 14 12 27 13 34 10 51 Peak Tracking Total 15 | . 4 7 5 5 6 6 15 Tactical Retreats 6 | . . 2 . 2 . . 2 Traps | -11 -10 -9 -9 -8 -7 -6 -5 ------- Run | Scr Mat Mat Sto Mat Fac Fac Fac Traps Triggered 16 | . 2 1 4 . 5 4 . Indirectly . | . . . . . . . . Trap Hack Attempts 94 | . . . 33 . . 17 44 Triggered . | . . . . . . . . Disarmed 2 | . . . . . . 2 . Reprogrammed 13 | . . . 7 . . 2 4 Reused 2 | . . . . . . . 2 Traps Extracted . | . . . . . . . . Installed . | . . . . . . . . Triggered 2 | . . . . . . . 2 Machines | -11 -10 -9 -9 -8 -7 -6 -5 ---------- Run | Scr Mat Mat Sto Mat Fac Fac Fac Machines Disabled 8 | . . . 2 . 1 4 1 Max in Single Turn 2 | . . . 1 . 1 2 1 Garrison Access 1 | . . . 1 . . . . Machines Sabotaged . | . . . . . . . . Garrisons Compromised . | . . . . . . . . Overloaded Fab Kills . | . . . . . . . . Hacking | -11 -10 -9 -9 -8 -7 -6 -5 --------- Run | Scr Mat Mat Sto Mat Fac Fac Fac Machines Accessed 45 | . 4 4 13 5 10 6 3 Terminals 32 | . 3 3 10 4 8 3 1 Fabricators 4 | . . . . . 1 1 2 Repair Stations 6 | . 1 1 2 1 1 . . Recycling Units 2 | . . . . . . 2 . Scanalyzers . | . . . . . . . . Garrison Access 1 | . . . 1 . . . . Total Hacks 130 | . 17 15 36 15 24 14 9 Successful 57 | . 7 9 18 5 10 5 3 Failed 72 | . 9 6 18 10 14 9 6 Catastrophic 11 | . 1 . 3 1 3 1 2 Database Lockouts 1 | . 1 . . . . . . Manual 46 | . 6 6 8 9 8 5 4 Terminals 96 | . 12 11 29 12 19 7 6 Fabricators 8 | . . . . . 2 3 3 Repair Stations 21 | . 5 4 6 3 3 . . Recycling Units 4 | . . . . . . 4 . Scanalyzers . | . . . . . . . . Garrison Access 1 | . . . 1 . . . . Terminal Hacks 28 | . 3 5 11 1 5 2 1 Part Schematic 2 | . . 1 . . 1 . . Robot Analysis 4 | . 2 2 . . . . . Prototype ID Bank 3 | . 1 1 . 1 . . . Open Door 3 | . . . 3 . . . . Open DSF 1 | . . . . . . 1 . Level Access Points 3 | . . . . . 1 1 1 Branch Access Points 1 | . . . . . 1 . . Terminal Index 1 | . . . 1 . . . . Alert Level 1 | . . . 1 . . . . Unreport Threat 5 | . . . 3 . 2 . . Recall Investigation 1 | . . . 1 . . . . Zone Layout 3 | . . 1 2 . . . . Fabricator Hacks . | . . . . . . . . Repair Station Hacks 15 | . 4 4 3 2 2 . . Scan Component 8 | . 2 2 2 1 1 . . Repair 7 | . 2 2 1 1 1 . . Recycling Unit Hacks . | . . . . . . . . Scanalyzer . | . . . . . . . . Garrison Access Hacks 1 | . . . 1 . . . . Seal Access 1 | . . . 1 . . . . Unauthorized Hacks 13 | . . . 3 2 3 3 2 Terminals 8 | . . . 3 2 1 1 1 Track 1 | . . . 1 . . . . Botnet 6 | . . . 1 2 1 1 1 Disrupt 1 | . . . 1 . . . . Fabricators 5 | . . . . . 2 2 1 Report 2 | . . . . . 1 1 . Haulers 3 | . . . . . 1 1 1 Repair Stations . | . . . . . . . . Recycling Units . | . . . . . . . . Scanalyzers . | . . . . . . . . Garrison Access . | . . . . . . . . Data Cores Recovered 1 | . . . . . . 1 . Used 1 | . . . . . . 1 . Hacking Detections 39 | . 4 4 9 5 9 5 3 Full Trace Events 5 | . . 1 2 1 . . 1 Feedback Events . | . . . . . . . . Feedback Blocked . | . . . . . . . . Robot Schematics Acquired . | . . . . . . . . Robots Built . | . . . . . . . . Authchips . | . . . . . . . . Time . | . . . . . . . . Total Robot Build Rating . | . . . . . . . . Part Schematics Acquired 2 | . . 1 . . 1 . . Parts Built . | . . . . . . . . Authchips . | . . . . . . . . Time . | . . . . . . . . Total Part Build Rating . | . . . . . . . . Parts Repaired 7 | . 2 2 1 1 1 . . Time 200 | . 52 52 26 26 44 . . Parts Recycled . | . . . . . . . . Recycled Matter . | . . . . . . . . Retrieved Matter . | . . . . . . . . Retrieved Components . | . . . . . . . . Parts Scanalyzed . | . . . . . . . . Part Schematics Acquired . | . . . . . . . . Parts Damaged . | . . . . . . . . Bothacking | -11 -10 -9 -9 -8 -7 -6 -5 ------------ Run | Scr Mat Mat Sto Mat Fac Fac Fac Used RIF Installer . | . . . . . . . . Robots Hacked 1 | . . . . . . . 1 Non-combat 1 | . . . . . . . 1 Combat . | . . . . . . . . Robot Hacks Applied 1 | . . . . . . . 1 parse_system 1 | . . . . . . . 1 Relay Couplers Released . | . . . . . . . . Robots Rewired . | . . . . . . . . Allies Hacked . | . . . . . . . . Hacks Repelled . | . . . . . . . . Allies | -11 -10 -9 -9 -8 -7 -6 -5 -------- Run | Scr Mat Mat Sto Mat Fac Fac Fac Total Allies . | . . . . . . . . Largest Group . | . . . . . . . . Highest-Rated Group . | . . . . . . . . Highest-Rated Ally . | . . . . . . . . Total Orders . | . . . . . . . . Ally Attacks . | . . . . . . . . Total Damage . | . . . . . . . . Kills . | . . . . . . . . Allies Corrupted . | . . . . . . . . Allies Melted . | . . . . . . . . Intel | -11 -10 -9 -9 -8 -7 -6 -5 ------- Run | Scr Mat Mat Sto Mat Fac Fac Fac Robot Analysis Total 4 | . 2 2 . . . . . Derelict Logs Recovered . | . . . . . . . . Drone Launches . | . . . . . . . . Drone Recoveries . | . . . . . . . . Exploration | -11 -10 -9 -9 -8 -7 -6 -5 ------------- Run | Scr Mat Mat Sto Mat Fac Fac Fac Turns Passed 8534 | 98 609 654 3140 589 1883 695 866 Spaces Moved 3481 | 53 261 278 1232 263 736 303 355 Core 28 | 1 . . . . . . 27 Treads 2618 | 52 261 278 1232 263 467 62 3 Legs . | . . . . . . . . Wheels 835 | . . . . . 269 241 325 Hover . | . . . . . . . . Flight . | . . . . . . . . Fastest Speed 50 | 50 160 160 160 160 145 145 50 Average Speed 176 | 157 160 160 186 160 201 151 154 Slowest Speed 250 | 160 160 160 240 160 240 240 250 Overloaded Moves . | . . . . . . . . Propulsion Burnouts . | . . . . . . . . Robots Hopped . | . . . . . . . . Cave-ins Triggered . | . . . . . . . . Exploration Rate (%) 31 | 4 51 19 95 30 24 13 12 Regions Visited 7 Branch Regions 1 Pre-discovered Areas . | . . . . . . . . Known Exits Taken 2 | . . . . . 1 1 . Unknown Exits Taken 5 | 1 1 1 1 1 . . . Scrap Searched . | . . . . . . . . Spaces Dug . | . . . . . . . . Terrain Destroyed 181 | . . . . . 72 62 47 Melee . | . . . . . . . . Projectile 2 | . . . . . . . 2 AOE 179 | . . . . . 72 62 45 Terrain Rammed . | . . . . . . . . Walls Destroyed . | . . . . . . . . Machines Disabled . | . . . . . . . . Actions | -11 -10 -9 -9 -8 -7 -6 -5 --------- Run | Scr Mat Mat Sto Mat Fac Fac Fac Total 5207 | 64 394 418 1900 391 981 504 555 Wait 1015 | . 83 83 458 75 119 149 48 Move 3474 | 52 260 277 1231 262 735 302 355 Hop . | . . . . . . . . Pick Up 77 | 6 6 7 23 10 11 4 10 Fast Attach 34 | 6 4 5 7 . 7 3 2 Attach 40 | . 1 3 . 2 12 6 16 Detach 9 | . 1 . . . 3 1 4 Swap 61 | . 4 4 29 5 9 7 3 Drop 74 | . 5 8 33 11 8 . 9 Fire 302 | . 30 31 80 22 66 13 60 Melee 3 | . . . . . . . 3 Ram . | . . . . . . . . Kick . | . . . . . . . . Crush 16 | . . . 4 4 7 . 1 Escape Stasis 8 | . . . 2 . 4 2 . Rewire . | . . . . . . . . Trap 94 | . . . 33 . . 17 44 Miscellaneous . | . . . . . . . . Route ------- -11/Scrapyard -10/Materials -9/Materials -9/Storage -8/Materials -7/Factory (discovered 6 exits: *Fac x4 / Low x2) -6/Factory (discovered 4 exits: *Fac x4) -5/Factory (discovered 5 exits: Fac x4 / [*Upp]) History --------- Turn | Location | Event 25 | -11/Scrapyard | Discovered new exit (range 15) 99 | -11/Scrapyard | Entered Materials 130 | -10/Materials | Central database locked down 303 | -10/Materials | Build established: Mutant 557 | -10/Materials | Discovered new exit (range 12) 604 | -10/Materials | Repaired Lgt. Treads 631 | -10/Materials | Repaired Sml. Laser 708 | -10/Materials | Entered another Materials area 708 | -9/Materials | Evolved 2 slots: Utility x1, Weapon x1 782 | -9/Materials | Discovered new exit (range 15) 1004 | -9/Materials | Build established: Scavenger-Tank 1065 | -9/Materials | Destroyed 7 combat bots 1113 | -9/Materials | Repaired Lgt. Armor Plating 1141 | -9/Materials | Repaired Lgt. Treads 1362 | -9/Materials | Entered Storage 2502 | -9/Storage | Discovered new exit (range 16) 3186 | -9/Storage | Found Prototype Launcher 3186 | -9/Storage | Identified Scatter Rocket Array 3474 | -9/Storage | Repaired Hcp. Storage Unit 3765 | -9/Storage | Build established: Tank 4502 | -9/Storage | Entered Materials 4502 | -8/Materials | Evolved 2 slots: Propulsion x2 4665 | -8/Materials | Repaired Huge Storage Unit 5045 | -8/Materials | Discovered new exit (range 5) 5091 | -8/Materials | Entered Factory 5091 | -7/Factory | Evolved 2 slots: Propulsion x1, Utility x1 5185 | -7/Factory | Identified exit to Lower Caves 6092 | -7/Factory | Repaired Arm. Huge Wheel 6672 | -7/Factory | Lost 5 parts (1n2u2w) 6720 | -7/Factory | Identified exit to Factory 6974 | -7/Factory | Entered another Factory area 6974 | -6/Factory | Evolved 2 slots: Propulsion x1, Utility x1 7114 | -6/Factory | Lost 7 parts (4n2u1w) 7164 | -6/Factory | Identified exit to Factory 7483 | -6/Factory | Garrison activated, responded to threat 7669 | -6/Factory | Entered another Factory area 7669 | -5/Factory | Evolved 2 slots: Power x1, Utility x1 7967 | -5/Factory | Build established: Gunner 8012 | -5/Factory | Identified exit to Factory 8185 | -5/Factory | Lost 3 parts (1n1u1w) 8343 | -5/Factory | Discovered new exit (range 17) 8458 | -5/Factory | Lost 8 parts (2n3u3w) 8463 | -5/Factory | Cargo convoy interrupted 8494 | -5/Factory | Destroyed 9 combat bots 8507 | -5/Factory | Lost 9 parts (2p4n1u2w) 8519 | -5/Factory | Core integrity fell below 50% 8532 | -5/Factory | Core integrity fell below 20% 8535 | -5/Factory | Destroyed by A-27 Freighter with PD Laser Last Messages --------------- 08508_ R-10 Processor collects Structural Scanner. 08510_ Penetrated by Slug. 08511_ K-01 Serf collects debris. 08511_ Penetrated by Slug. 08511_ Adv. Assault Cannon destroyed. 08513_ Penetrated by Slug. 08518_ System corrupted: Heat flow error (+163). 08518_ Slug penetrates Wall. 08518_ Penetrated by Slug. 08522_ Slug penetrates Wall. 08523_ System corrupted: Hvy. Mass Driver jammed. 08527_ Slug penetrates P-70 Sage. 08527_ Hvy. Mass Driver destroyed. 08528_ Penetrated by Slug. 08531_ Slug penetrates Wall. 08531_ Penetrated by Slug. 08533_ Neutrino Reactor explodes. 08534_ Penetrated by Slug. 08534_ Slug penetrates Wall. 08535_ P-70 Sage knocked back. Map ----- +----------------------------------------------------+ | ?????????????????????????????????????????????????? | | ?????????????????????????????????????????????????? | | ?????????????????????????????????????????????????? | | ?????????????????????????????????????????????????? | | ???????? +???????????????????????????????????????? | | ??????? #???????????????????????????????????????? | | ?????? # "?????????????????????????????????????? | | ??????T / ""????????????????????????????????????? | | ????? # """ ??????????????????????????????????? | | ?? % # ?????????????????????????????????? | | """""% | ??????????????????????????????????? | | """"" #?###########???????????????????????? | | """"" %% #?# """"""" #???????????????????????? | | """" #?# """"""" #???????????????????????? | | % #?# """"""" #???????????????????????? | | % #??# " """"" #???????????????????????? | | # # # #???# #???????????????????????? | | % % ##???# = #???????????????????????? | | * !]* #??????# ! = #???????????????????????? | | # #!# #??????# !% #???????????????????????? | | # #!!#???????#####+######??????????????????????? | | # ############# # #??????????????????????? | | # % % #;######################?? | | " # % % % % % #?? | | + % #?? | | # ^^ pt@ % % #?? | | / p # # ############# ##? | | ## ########## % # ????????????# ##? | | ## #????????### ### ??????????# #?? | | ?## #??????????# #?#[ "????????# #?? | | ??# #??????????+ #?# """??????# #?? | | ???# #??????????# #?# ??????#+##+### | | ???# #??????????# #?##A# #######??????# | | ???# #??????????# ??? ????????????# | | ???# #??????????# ! ?? ????????????# | | ???# #??????????# ? "? ???????????# | | ???# #??????????# ""? "?" ???????????# | | ??? ??????????# """ ?" ??????????# | | ??? ?????????? """ "??? ??????????# | | ??? ?????????? ? "??????????????# | | ?? < ????????? ??????????????????# | | ?? ????????? ?????????????????# | | ?? ???????? ?????????????????# | | ?# ???????? ######?????????????????# | | ?## ????????? ???????????????????????######## | | ??? ?????????????????????????????????????????? | | ?????????????????????????????????????????????????? | | ?????????????????????????????????????????????????? | | ?????????????????????????????????????????????????? | | ?????????????????????????????????????????????????? | +----------------------------------------------------+ Best States ------------- Heat Dissipation 71 Energy Generation 24 Energy Capacity 330 Matter Stores 300 Matter Capacity 300 Sight Range 22 Robot Scan Range 14 Terrain Scan Density 10 Armor Coverage 600 Evasion (%) 46 Targeting Accuracy 6 Target Analysis 6 Recoil Reduction 6 Offensive Hacking 20 Item Schematics ----------------- Huge Storage Unit | -9/Materials | Hacked Rnf. Fission Core | -7/Factory | Hacked Robot Schematics ------------------ None Fabricated ------------ Nothing Alien Tech Used ----------------- None Achievements -------------- None Challenges ------------ Scavenger Game ------ Seed GravmagTacticalInterrupter Manual? 0 Play Time 00:45:35 Cumulative 978.1 hours Start 2021.10.28 @ 02:57:25 End 2021.10.28 @ 03:42:52 Sessions 1 Manual Loads 0 Difficulty Rogue Special Mode None Game No. 669 Rogue 665 Adventurer 4 Explorer 0 Win Type - Total 103 Types 78/9/6/4/2/0/0/2/2 Lore% 93 Gallery% 97 Achievement% 96 Wizard Run 0 Options --------- ASCII 0 Keyboard 1 Movement Vi Keybinds 0 Fullscreen 0 Font 16/Terminus Map View 76x50 Tactical HUD 1 Map Filters NONE Filters NONE Steam 1 RUN: 6cb1a6ff-7a90-4a65-bcd4-6014937ce73e